[Event "FIDE WY-U16 Olympiad 2022"]
[Site "Nakhchivan"]
[Date "2022.10.06"]
[Round "5.7"]
[White "Movahed, Sina"]
[Black "Harshad S"]
[Result "1-0"]
[ECO "B99"]
[WhiteElo "2325"]
[BlackElo "2228"]
[Annotator "TA"]
[PlyCount "101"]
[EventDate "2022.10.02"]
[EventType "team-tourn"]
[EventCountry "AZE"]
[SourceTitle "playchess.com"]
[Source "ChessBase"]
[SourceQuality "1"]
[WhiteTeam "Iran"]
[BlackTeam "India"]
[WhiteTeamCountry "IRI"]
[BlackTeamCountry "IND"]
[TimeControl "40/5400+30:1800+30"]

{[%evp 22,101,59,46,60,39,45,56,49,58,53,31,41,0,0,0,0,16,47,45,35,-8,-18,-17,0,0,0,0,0,0,0,0,0,0,0,0,47,58,41,49,61,39,116,119,110,114,137,87,140,110,125,100,239,194,284,267,225,198,300,289,508,508,508,508,710,682,664,609,1186,1154,1085,847,2553,2129,29973,29976,29976,29977,29980,29981,29980,29981]} 1. e4 {[%emt 0:00:08]} c5 {[%emt 0:00:05]} 2. Nf3 {[%emt 0:00:08]} d6 {[%emt 0:00:05]} 3. d4 {[%emt 0:00:08]} cxd4 {[%emt 0:00:05]} 4. Nxd4 {[%emt 0:00:04]} Nf6 {[%emt 0:00:10]} 5. Nc3 {[%emt 0:00:05]} a6 {[%emt 0:00:06]} 6. Bg5 {[%emt 0:00:04]} e6 {[%emt 0:00:08]} 7. f4 {[%emt 0:00:09]} Be7 {[%emt 0:00:00]} 8. Qf3 {[%emt 0:00:16]} Qc7 {[%emt 0:00:06]} 9. O-O-O {[%emt 0:00:07]} Nbd7 {[%emt 0:00:04]} 10. g4 {[%emt 0:01:06][%cal Bg2g4,Bg4g5][%mdl 32]} h6 {[%emt 0:02:04]} 11. Bxf6 {[%emt 0:00:12]} Bxf6 {[%emt 0:00:47]} 12. h4 {[%emt 0:00:17]} Nb6 {[%emt 0:00:23] is now more promising than 12...Qb6. B99: Sicilian Najdorf: 6 Bg5 e6 7 f4 Be7 8 Qf3 Qc7 9 0-0-0 Nbd7.} 13. g5 {[%emt 0:00:47]} Bxd4 {[%emt 0:00:31]} 14. Rxd4 {[%emt 0:00:07]} Qc5 {[%emt 0:00:06] White is slightly better.} 15. Rd2 {[%emt 0:01:23]} Bd7 {[%emt 0:01:46]} 16. g6 {[%emt 0:07:01] [#] And now gxf7+ would win.} O-O {[%emt 0:02:30]} 17. gxf7+ {[%emt 0:03:15]} Rxf7 {[%emt 0:01:49]} 18. Qg3 {[%emt 0:00:23]} Raf8 {[%emt 0:30:20]} 19. Rg1 {[%emt 0:00:31]} Na4 {[%emt 0:39:49] [#]} 20. Nd1 $146 {[%emt 0:05:16]} ({Predecessor:} 20. Nxa4 Bxa4 21. Bh3 Bd7 22. e5 d5 23. c3 Qc4 24. Rd4 Qxa2 25. Qf2 a5 26. Rg3 b5 27. Bf1 b4 28. Kc2 Ba4+ 29. Kd3 bxc3 30. Rg2 c2 31. Qe1 Qxb2 {0-1 (31) Massanet Massanet,S (2232)-Zambrana Petisme,R (2128) Linares 2022}) 20... Kh8 {[%emt 0:02:20]} 21. c3 {[%emt 0:14:48]} Qc7 {[%emt 0:06:07]} 22. Bd3 {[%emt 0:01:40]} Nc5 {[%emt 0:00:27] Hoping for ...Bc6.} 23. Bc2 {[%emt 0:00:38]} Bc6 {[%emt 0:03:04]} 24. Qe3 {[%emt 0:09:39]} Rxf4 {[%emt 0:02:11][%cal Rc6e4]} 25. e5 {[%emt 0:00:06]} Bd5 {[%emt 0:00:11]} (25... Rxh4 $2 26. exd6 Qf7 27. Qxc5 $18) 26. exd6 {[%emt 0:00:10]} Qxd6 {[%emt 0:02:09]} 27. b4 $1 {[%emt 0:02:33]} ({Much weaker is} 27. Qg3 Qe7 28. Qg6 Be4 29. Bxe4 Nxe4 $17) 27... Nd7 {[%emt 0:01:00]} 28. Qd3 $1 $40 {[%emt 0:00:06][%csl Gc2][%cal Rd3h7][%mdl 128] White has some attack.} R8f5 {[%emt 0:04:54]} (28... Nf6 $11) 29. Qg3 $14 {[%emt 0:00:14][%csl Gg1,LRf5,LRg7][%cal Rg3g7]} Qf8 {[%emt 0:01:04]} 30. Bxf5 {[%emt 0:00:33]} Rxf5 {[%emt 0:00:01]} 31. Rf2 {[%emt 0:03:20]} Rxf2 {[%emt 0:00:55]} (31... Qf6 $14) 32. Qxf2 $16 {[%emt 0:00:13]} Qxf2 {[%emt 0:00:16]} 33. Nxf2 {[%emt 0:00:12]} Bxa2 $14 {[%emt 0:00:08][%mdl 4096] Endgame KRN-KBN} 34. Nd3 {[%emt 0:00:41] Inhibits Ne5.} (34. Kd2 $142) 34... Kh7 {[%emt 0:01:14]} (34... Kg8 $142) 35. Nf4 {[%emt 0:01:42][%mdl 1024] White has strong compensation.} e5 {[%emt 0:00:32]} 36. Nh5 {[%emt 0:00:16]} g6 {[%emt 0:00:09] [#] Black cannot hold the game after this.} (36... g5 $16) 37. Rd1 $1 $18 {[%emt 0:00:05]} Nf8 {[%emt 0:00:41]} (37... Be6 {was worth a try.}) 38. Nf6+ {[%emt 0:00:09]} Kg7 {[%emt 0:00:36]} 39. Nd7 {[%emt 0:01:01]} Bb3 {[%emt 0:00:30]} (39... g5 $142 40. hxg5 (40. Nxe5 gxh4 41. Nf3 h3 $16) 40... hxg5 41. Nxf8 (41. Nxe5 Be6 $16) 41... Kxf8) 40. Rd6 {[%emt 0:00:06] aiming for Nxf8.} Nxd7 {[%emt 0:00:33]} (40... Bf7 41. Nxf8 Kxf8) 41. Rxd7+ {[%emt 0:30:08] KR-KB} Kf6 {[%emt 0:01:05]} 42. Rxb7 {[%emt 0:00:00] Threatens to win with Rb6+.} Kf5 {[%emt 0:00:16]} 43. Kd2 {[%emt 0:00:00]} g5 {[%emt 0:01:32]} 44. hxg5 {[%emt 0:00:00]} hxg5 {[%emt 0:00:24]} 45. Ke3 {[%emt 0:00:00]} g4 {[%emt 0:10:19]} 46. Rc7 {[%emt 0:00:00] c4 is the strong threat.} Bd5 {[%emt 0:08:13]} 47. c4 {[%emt 0:00:00][%cal Bc3c4,Bc4b5,Bb5b6][%mdl 32]} Bg2 {[%emt 0:03:32]} 48. b5 {[%emt 0:00:00] White mates.} axb5 {[%emt 0:02:21]} 49. cxb5 {[%emt 0:00:00]} Ke6 {[%emt 0:00:31]} 50. b6 {[%emt 0:00:00]} Kd6 {[%emt 0:00:20]} 51. Rg7 {[%emt 0:00:00] Weighted Error Value: White=0.08 (flawless) /Black=0.46} 1-0

[Event "FIDE WY-U16 Olympiad 2022"]
[Site "Nakhchivan"]
[Date "2022.10.06"]
[Round "5.7"]
[White "Thamil Manni, Swetha"]
[Black "Iunusov, Nuriddin"]
[Result "0-1"]
[ECO "A45"]
[WhiteElo "1428"]
[BlackElo "1940"]
[Annotator "TA"]
[PlyCount "45"]
[EventDate "2022.10.02"]
[EventType "team-tourn"]
[EventCountry "AZE"]
[SourceTitle "playchess.com"]
[Source "ChessBase"]
[SourceQuality "1"]
[WhiteTeam "Malaysia"]
[BlackTeam "Kyrgyzstan"]
[WhiteTeamCountry "MAS"]
[BlackTeamCountry "KGZ"]
[TimeControl "40/5400+30:1800+30"]

{[%evp 9,45,-3,-14,-14,-4,-12,-6,-7,-14,-41,-49,-45,-60,-94,-76,-69,-70,-159,-168,-158,-122,-214,-185,-211,-213,-276,-293,-419,-347,-333,-363,-558,-323,-29992,-29993,-29998,-29999,-29999]} 1. d4 {[%emt 0:00:06]} Nf6 {[%emt 0:00:08]} 2. Bf4 {[%emt 0:00:20]} c5 {[%emt 0:00:08]} 3. e3 {[%emt 0:00:43]} Nd5 {[%emt 0:00:06]} 4. Bxb8 {[%emt 0:04:01]} Rxb8 {[%emt 0:00:01]} 5. c4 {[%emt 0:01:45]} Qa5+ {[%emt 0:00:04]} 6. Nd2 {[%emt 0:02:56] A45: Trompowsky Attack.} Nf6 {[%emt 0:00:52]} 7. Ngf3 {[%emt 0:03:23]} g6 {[%emt 0:04:19]} 8. Bd3 {[%emt 0:05:50] [#] The position is equal.} Bg7 $146 {[%emt 0:00:13]} ({Predecessor:} 8... d6 9. O-O Bg7 10. a3 Qc7 11. Re1 e6 12. Nb1 O-O 13. Nc3 a6 14. Rc1 b6 {0-1 (49) Lorenz,B-Green,M (2050) ICCF email 2017}) 9. h4 {[%emt 0:01:24]} d6 {[%emt 0:04:26]} 10. a3 {[%emt 0:05:01][%cal Ob2b4]} O-O {[%emt 0:08:46]} 11. Qb1 {[%emt 0:09:45]} Bg4 {[%emt 0:13:41] Black is more active.} 12. b4 {[%emt 0:01:59]} Qc7 {[%emt 0:00:30]} 13. b5 {[%emt 0:03:45]} (13. O-O $15) 13... cxd4 $17 {[%emt 0:07:28]} 14. Nxd4 {[%emt 0:08:30]} e5 {[%emt 0:09:44]} 15. N4b3 {[%emt 0:08:00]} (15. b6 $17 axb6 16. Nb5) 15... d5 $19 {[%emt 0:03:30]} 16. cxd5 {[%emt 0:14:18]} Nxd5 {[%emt 0:02:33]} 17. e4 {[%emt 0:02:31]} Nf4 {[%emt 0:06:59]} ({Don't blunder} 17... Nc3 $2 18. Qc2 $19) 18. O-O {[%emt 0:01:38]} (18. Bf1 $142) 18... Qd8 {[%emt 0:09:40]} 19. Bc4 {[%emt 0:03:32]} Qxh4 {[%emt 0:01:43] Hoping for ...Rbc8.} 20. g3 {[%emt 0:02:07]} (20. Qe1 $142 Bh3 21. g3) 20... Qg5 {[%emt 0:04:31]} 21. gxf4 $2 {[%emt 0:04:06] [#]} (21. Rc1 $19) 21... exf4 {[%emt 0:00:20]} 22. f3 {[%emt 0:00:37]} Bxf3+ {[%emt 0:00:12][%mdl 64] Discovered Attack. This bishop pair is nice.} 23. Kf2 {[%emt 0:00:08] Weighted Error Value: White=0.77/Black=0.22 (precise)} 0-1

[Event "FIDE WY-U16 Olympiad 2022"]
[Site "Nakhchivan"]
[Date "2022.10.06"]
[Round "5.8"]
[White "Boramanikar Tanisha S"]
[Black "Karimi, Setayesh"]
[Result "1/2-1/2"]
[ECO "B22"]
[WhiteElo "1808"]
[BlackElo "1925"]
[Annotator "TA"]
[PlyCount "74"]
[EventDate "2022.10.02"]
[EventType "team-tourn"]
[EventCountry "AZE"]
[SourceTitle "playchess.com"]
[Source "ChessBase"]
[SourceQuality "1"]
[WhiteTeam "India"]
[BlackTeam "Iran"]
[WhiteTeamCountry "IND"]
[BlackTeamCountry "IRI"]
[TimeControl "40/5400+30:1800+30"]

{[%evp 22,74,13,14,4,8,0,12,13,10,45,29,18,19,25,20,28,4,5,14,4,-11,0,-22,0,-9,0,-33,0,0,0,0,23,-36,0,0,0,0,37,29,41,13,37,56,89,0,8,8,8,7,18,-35,-33,-30,-26]} 1. e4 {[%emt 0:00:11]} c5 {[%emt 0:00:06]} 2. c3 {[%emt 0:00:07]} d5 {[%emt 0:00:05]} 3. exd5 {[%emt 0:00:08]} Qxd5 {[%emt 0:00:06]} 4. d4 {[%emt 0:00:05]} Nf6 {[%emt 0:00:47]} 5. Nf3 {[%emt 0:00:07]} e6 {[%emt 0:00:07]} 6. Bd3 {[%emt 0:02:58]} Be7 {[%emt 0:02:37]} 7. O-O {[%emt 0:00:54]} O-O {[%emt 0:02:23]} 8. Be3 {[%emt 0:03:05]} Nc6 {[%emt 0:16:20]} 9. dxc5 {[%emt 0:08:06]} Rd8 {[%emt 0:01:31]} 10. Bc2 {[%emt 0:05:45]} Qxd1 {[%emt 0:09:25]} 11. Rxd1 {[%emt 0:01:00]} Rxd1+ {[%emt 0:00:04]} 12. Bxd1 {[%emt 0:00:04]} Ng4 {[%emt 0:01:45] B22: Sicilian: 2 c3.} 13. b4 {[%emt 0:06:07][%cal Bb2b4,Bb4b5][%mdl 32]} Nxe3 {[%emt 0:03:31]} 14. fxe3 {[%emt 0:00:04]} a5 $1 {[%emt 0:01:05] The position is equal.} 15. b5 {[%emt 0:08:25]} Na7 {[%emt 0:02:35]} 16. a4 {[%emt 0:00:53]} Bxc5 {[%emt 0:00:40]} 17. Kf2 {[%emt 0:00:37]} b6 {[%emt 0:17:08] [#]} 18. Nbd2 $146 {[%emt 0:02:35]} ({Predecessor:} 18. Ne5 Bb7 19. Nd7 Rc8 20. Ra2 f5 21. Rd2 Be4 22. Bb3 Kf7 23. Nxc5 Rxc5 24. Rd7+ {½-½ (50) Howell,D-Wise,D (2173) Millfield 2000}) 18... Bb7 {[%emt 0:02:15]} 19. Ne5 {[%emt 0:12:54] Threatens to win with Nd7.} Rd8 {[%emt 0:08:33] Inhibits Nd7.} 20. Nb3 {[%emt 0:02:03]} Bd6 {[%emt 0:00:51] A strong pair of Bishops.} 21. Nf3 {[%emt 0:06:51]} Bd5 {[%emt 0:12:10]} 22. Nbd2 {[%emt 0:06:35]} Bc5 {[%emt 0:04:15]} 23. Ke2 {[%emt 0:03:44]} Nc8 {[%emt 0:06:16]} 24. Bb3 {[%emt 0:04:10]} Bxf3+ {[%emt 0:04:08]} 25. Nxf3 {[%emt 0:00:52]} Nd6 {[%emt 0:00:29]} 26. Rd1 {[%emt 0:04:49]} Nb7 {[%emt 0:00:27]} 27. Nd4 {[%emt 0:03:53]} (27. Rxd8+ $11 Nxd8 28. Ne5) 27... e5 {[%emt 0:02:38]} 28. Nf3 {[%emt 0:02:34] [#] Strongly threatening Rxd8+.} Rxd1 {[%emt 0:00:05]} 29. Kxd1 $11 {[%emt 0:00:39][%mdl 4096] Endgame KBN-KBN} Bd6 {[%emt 0:00:34]} 30. Ng5 {[%emt 0:00:48]} Nd8 {[%emt 0:00:08]} 31. Ne4 {[%emt 0:10:08]} Be7 {[%emt 0:00:26]} 32. Bd5 {[%emt 0:00:47]} Kf8 $1 {[%emt 0:00:33]} 33. Nd2 {[%emt 0:01:41] White is more active.} (33. g4 $16) 33... Bc5 {[%emt 0:01:22]} 34. Ke2 {[%emt 0:00:23]} Ke7 {[%emt 0:00:26]} 35. Ne4 {[%emt 0:01:56]} Ba3 {[%emt 0:00:25]} 36. Kd3 {[%emt 0:01:02]} ({White should try} 36. g4 $11) 36... f5 $15 {[%emt 0:00:52]} 37. Nd2 {[%emt 0:00:36]} e4+ {Weighted Error Value: White=0.19 (very precise) /Black=0.11 (very precise)} 1/2-1/2

[Event "FIDE WY-U16 Olympiad 2022"]
[Site "Nakhchivan"]
[Date "2022.10.06"]
[Round "5.8"]
[White "Berdibaeva, Edisa"]
[Black "Cairel Adrin, Rumi Arjuna Malique"]
[Result "1-0"]
[ECO "C68"]
[WhiteElo "1617"]
[BlackElo "1223"]
[Annotator "NA RC COMBH"]
[PlyCount "101"]
[EventDate "2022.10.02"]
[EventType "team-tourn"]
[EventCountry "AZE"]
[SourceTitle "playchess.com"]
[Source "ChessBase"]
[SourceQuality "1"]
[WhiteTeam "Kyrgyzstan"]
[BlackTeam "Malaysia"]
[WhiteTeamCountry "KGZ"]
[BlackTeamCountry "MAS"]
[TimeControl "40/5400+30:1800+30"]

1. e4 {[%emt 0:00:03]} e5 {[%emt 0:00:05]} 2. Nf3 {[%emt 0:00:05]} Nc6 {[%emt 0:00:04]} 3. Bb5 {[%emt 0:00:06]} a6 {[%emt 0:00:06]} 4. Bxc6 {[%emt 0:00:07]} dxc6 {[%emt 0:00:07]} 5. d4 {[%emt 0:00:06]} exd4 {[%emt 0:00:06]} 6. Qxd4 {[%emt 0:00:08]} Qxd4 {[%emt 0:00:05]} 7. Nxd4 {[%emt 0:00:06]} Bd7 {[%emt 0:00:03]} 8. Nc3 {[%emt 0:00:10]} O-O-O {[%emt 0:00:10]} 9. Be3 {[%emt 0:00:17]} f6 {[%emt 0:01:25]} 10. O-O-O {[%emt 0:00:57]} Ne7 {[%emt 0:00:10]} 11. f3 {[%emt 0:01:33]} c5 {[%emt 0:06:00]} 12. Nde2 {[%emt 0:01:38]} b6 {[%emt 0:00:46]} 13. Nf4 {[%emt 0:02:06]} Nc6 {[%emt 0:02:52]} 14. Nfd5 {[%emt 0:05:49]} Ne5 {[%emt 0:09:31]} 15. Bf4 {[%emt 0:04:42]} Kb7 {[%emt 0:01:21]} 16. Bg3 {[%emt 0:07:20]} Bd6 {[%emt 0:01:49]} 17. Rhe1 {[%emt 0:09:58]} Rhe8 {[%emt 0:00:52]} 18. Ne3 {[%emt 0:14:31]} Bc8 {[%emt 0:11:16]} 19. Rd2 {[%emt 0:17:28]} g5 {[%emt 0:14:15]} 20. Red1 {[%emt 0:03:27]} Nf7 {[%emt 0:10:56]} 21. Ncd5 {[%emt 0:11:12]} Bxg3 {[%emt 0:04:58]} 22. hxg3 {[%emt 0:00:24]} Re6 {[%emt 0:21:02]} 23. Rh1 {[%emt 0:05:49]} h6 {[%emt 0:01:23]} 24. Nf5 {[%emt 0:04:39]} Re5 {[%emt 0:08:48]} 25. g4 {[%emt 0:05:44]} Bxf5 {[%emt 0:00:42]} 26. gxf5 {[%emt 0:00:08]} Rd6 {[%emt 0:01:42]} 27. Ne3 {[%emt 0:00:26]} Rxd2 {[%emt 0:00:38]} 28. Kxd2 {[%emt 0:00:07]} c6 {[%emt 0:00:26]} 29. Ng4 {[%emt 0:00:15]} Re8 {[%emt 0:00:22]} 30. Nxf6 {[%emt 0:00:34]} Rd8+ {[%emt 0:00:18]} 31. Ke3 {[%emt 0:00:43]} Kc7 {[%emt 0:00:48]} 32. Ng4 {[%emt 0:00:43]} Re8 {[%emt 0:00:28]} 33. Rh3 {[%emt 0:03:00]} Rh8 {[%emt 0:00:35]} 34. f4 {[%emt 0:00:43]} gxf4+ {[%emt 0:01:00]} 35. Kxf4 {[%emt 0:00:07]} Kd6 {[%emt 0:00:19]} 36. e5+ {[%emt 0:00:38]} Ke7 {[%emt 0:00:59]} 37. e6 {[%emt 0:00:15]} Nd6 {[%emt 0:01:10]} 38. Rxh6 {[%emt 0:00:18]} Rf8 {[%emt 0:00:20]} 39. Rh7+ {[%emt 0:00:16]} Ke8 {[%emt 0:00:20]} 40. f6 {[%emt 0:00:10]} Nf7 {[%emt 0:00:54]} 41. exf7+ {[%emt 0:30:13]} Rxf7 {[%emt 0:30:08]} 42. Rxf7 {[%emt 0:00:20]} Kxf7 {[%emt 0:00:03]} 43. Kf5 {[%emt 0:00:07]} Kf8 {[%emt 0:00:24]} 44. Kg6 {[%emt 0:00:15]} Kg8 {[%emt 0:00:14]} 45. f7+ {[%emt 0:00:13]} Kf8 {[%emt 0:00:22]} 46. Nf6 {[%emt 0:00:20]} c4 {[%emt 0:00:15]} 47. Nh7+ {[%emt 0:00:07]} Ke7 {[%emt 0:00:07]} 48. f8=Q+ {[%emt 0:00:07]} Ke6 {[%emt 0:00:06]} 49. Qe8+ {[%emt 0:00:18]} Kd5 {[%emt 0:00:07]} 50. Kf5 {[%emt 0:00:11]} Kd4 {[%emt 0:00:16]} 51. Qe5# {[%emt 0:00:19]} 1-0

[Event "FIDE WY-U16 Olympiad 2022"]
[Site "Nakhchivan"]
[Date "2022.10.06"]
[Round "5.9"]
[White "Samadov, Read"]
[Black "Madaminov, Mukhiddin"]
[Result "1/2-1/2"]
[ECO "E32"]
[WhiteElo "2455"]
[BlackElo "2441"]
[Annotator "TA"]
[PlyCount "103"]
[EventDate "2022.10.02"]
[EventType "team-tourn"]
[EventCountry "AZE"]
[SourceTitle "playchess.com"]
[Source "ChessBase"]
[SourceQuality "1"]
[WhiteTeam "Azerbaijan"]
[BlackTeam "Uzbekistan"]
[WhiteTeamCountry "AZE"]
[BlackTeamCountry "UZB"]
[TimeControl "40/5400+30:1800+30"]

{[%evp 18,103,50,35,44,40,44,0,64,61,67,16,10,18,0,0,0,0,0,0,0,0,0,0,0,0,0,0,0,-71,-71,-71,-71,-74,-72,-75,-64,-44,0,0,0,0,0,0,0,0,0,-9,0,0,0,0,0,0,0,0,0,0,0,0,0,0,0,0,69,0,0,0,0,0,0,0,0,0,0,0,0,0,0,0,0,0,0,0,0,0,0,0]} 1. d4 {[%emt 0:00:03]} Nf6 2. c4 {[%emt 0:00:09]} e6 {[%emt 0:01:33]} 3. Nc3 {[%emt 0:00:18]} Bb4 {[%emt 0:00:02]} 4. Qc2 {[%emt 0:00:17]} O-O {[%emt 0:00:09]} 5. a3 {[%emt 0:00:19]} Bxc3+ {[%emt 0:00:09]} 6. Qxc3 {[%emt 0:00:08]} b6 7. Bg5 {[%emt 0:00:19]} c5 {[%emt 0:08:40]} 8. dxc5 {[%emt 0:02:34]} bxc5 {[%emt 0:00:44]} 9. e3 {[%emt 0:02:45]} Nc6 {[%emt 0:04:08]} 10. Bd3 {[%emt 0:04:32]} Qa5 {[%emt 0:21:35] E32: Nimzo-Indian: Classical (4 Qc2): 4...0-0.} 11. Ne2 {[%emt 0:08:54]} Rb8 {[%emt 0:13:46]} 12. O-O-O {[%emt 0:20:54]} Qxc3+ {[%emt 0:14:40]} (12... Ng4 $1 $11 13. Bh4 Nge5) 13. Nxc3 $14 {[%emt 0:00:23] [#]} Ng4 $146 {[%emt 0:00:03]} ({Predecessor:} 13... Na5 14. Bxf6 gxf6 15. Ne4 Nb3+ 16. Kc2 f5 17. Nd6 Ba6 18. Kc3 Rb6 19. Bb1 Rfb8 {0-1 (58) Johansson,J (2365)-Sammalvuo,T (2370) Helsinki 1996}) 14. Rhf1 (14. Bh4 $1 $14) 14... Ba6 {[%emt 0:01:27]} 15. Bf4 {[%emt 0:16:56]} Nge5 $36 {[%emt 0:02:19][%mdl 2048] Black has some pressure.} 16. Be4 {[%emt 0:14:06] A strong pair of Bishops.} Bxc4 {[%emt 0:08:03] Strongly threatening ...d5.} 17. Bxc6 {[%emt 0:01:31]} Nxc6 {[%emt 0:00:06]} 18. Bxb8 {[%emt 0:00:54]} Rxb8 {[%emt 0:00:06]} 19. Rg1 {[%emt 0:02:06]} d5 {[%emt 0:03:31]} 20. Na4 {[%emt 0:02:46]} Bb3 {[%emt 0:04:40][%csl LRa4,LRd1]} 21. Nxc5 {[%emt 0:00:31]} Bxd1 {[%emt 0:00:01]} 22. Rxd1 $11 {[%emt 0:00:10][%mdl 4096] Endgame KRN-KRN} Ne5 {[%emt 0:01:29]} 23. Rd2 {[%emt 0:07:21]} (23. Nd3 $1 $11 {remains equal.} Nc4 24. Kc2) 23... Rc8 $17 {[%emt 0:00:58]} 24. b4 {[%emt 0:00:13] [#]} Nd7 $1 {[%emt 0:00:35]} 25. Rc2 {[%emt 0:01:39] [#]} Nxc5 {[%emt 0:00:24]} 26. bxc5 {[%emt 0:04:44] KR-KR} Kf8 {[%emt 0:00:46]} 27. Kd2 {[%emt 0:01:43]} Rb8 {[%emt 0:00:09] Against Rb2} 28. c6 {[%emt 0:01:59]} Ke7 {[%emt 0:02:07]} 29. Rc5 $1 {[%emt 0:00:31]} Rc8 {[%emt 0:00:05]} 30. Ra5 {[%emt 0:00:43]} Rc7 {[%emt 0:00:05]} 31. Ra6 {[%emt 0:01:01]} Kd6 {[%emt 0:00:08]} 32. Kd3 {[%emt 0:00:57]} Kc5 {[%emt 0:00:10] ...Kb5 is the strong threat.} 33. a4 {[%emt 0:00:33]} e5 {[%emt 0:02:03]} 34. e4 {[%emt 0:01:13]} dxe4+ {[%emt 0:01:28]} 35. Kxe4 {[%emt 0:00:11]} f6 {[%emt 0:00:02]} 36. g4 {[%emt 0:01:56]} Kd6 {[%emt 0:00:44]} 37. f4 {[%emt 0:00:44]} exf4 {[%emt 0:01:04]} 38. Kxf4 {[%emt 0:00:01]} g6 {[%emt 0:01:02]} 39. h4 {[%emt 0:00:42]} Kd5 {[%emt 0:00:13]} 40. h5 {[%emt 0:01:55]} Kd4 {[%emt 0:10:37]} ({Black should try} 40... Kd6 $11) 41. hxg6 {[%emt 0:30:51]} (41. Ra5 $14) 41... hxg6 $11 {[%emt 0:30:01] The position is equal.} 42. Ra5 {[%emt 0:00:00]} (42. g5 $5 {[%cal Rg5f6]} fxg5+ 43. Kxg5 $11) 42... Kc4 {[%emt 0:00:00]} 43. Ke4 {[%emt 0:00:00]} Kb4 {[%emt 0:00:00]} 44. Rb5+ {[%emt 0:00:00]} Kxa4 {[%emt 0:00:00]} 45. Rc5 {[%emt 0:00:00] Threatens to win with Kd5.} Kb4 {[%emt 0:00:00]} 46. Kd5 {[%emt 0:00:00] And now Kd6 would win.} a5 {[%emt 0:00:00][%cal Ba7a5,Ba5a4,Ba4a3][%mdl 32]} 47. Kd6 {[%emt 0:00:00]} Rc8 {[%emt 0:00:00] ( -> ...Rd8+)} (47... a4 $2 48. Kxc7 Kxc5 49. Kd7 $18) 48. c7 {[%emt 0:00:00][%cal Od6d7] Against Rd8+} a4 {[%emt 0:00:00]} 49. Kd7 {[%emt 0:00:00]} Rxc7+ {[%emt 0:00:00]} (49... Kxc5 50. Kxc8 f5 51. Kd7 fxg4 52. c8=Q+ Kb4 53. Kd6 g3 54. Qg4+ Kb3 55. Qxg6) 50. Rxc7 {[%emt 0:00:00] Ke6 would kill now.} a3 {[%emt 0:00:00]} 51. Ke6 {[%emt 0:00:00]} f5 {[%emt 0:00:00]} 52. gxf5 {[%emt 0:00:00] Weighted Error Value: White=0.10 (very precise) /Black=0.07 (flawless)} 1/2-1/2

[Event "FIDE WY-U16 Olympiad 2022"]
[Site "Nakhchivan"]
[Date "2022.10.06"]
[Round "5.9"]
[White "Swarnavo, Choudhury"]
[Black "Omonov, Asrorjon"]
[Result "0-1"]
[ECO "C11"]
[WhiteElo "1979"]
[BlackElo "2064"]
[Annotator "TA"]
[PlyCount "52"]
[EventDate "2022.10.02"]
[EventType "team-tourn"]
[EventCountry "AZE"]
[SourceTitle "playchess.com"]
[Source "ChessBase"]
[SourceQuality "1"]
[BlackTeam "Uzbekistan"]
[BlackTeamCountry "UZB"]
[TimeControl "40/5400+30:1800+30"]

{[%evp 18,52,5,-35,-47,-40,-26,-19,-26,-36,0,-22,-31,-25,-19,-63,-71,-137,-43,-76,-74,-66,-71,-118,-105,-131,-136,-607,-602,-727,-706,-1172,-1171,-1041,-1075,-2253,-1214]} 1. e4 {[%emt 0:00:25]} e6 {[%emt 0:01:04]} 2. d4 {[%emt 0:00:10]} d5 {[%emt 0:00:03]} 3. Nc3 {[%emt 0:02:02]} Nf6 {[%emt 0:00:05]} 4. e5 {[%emt 0:00:04]} Nfd7 {[%emt 0:00:06]} 5. f4 {[%emt 0:00:06]} c5 {[%emt 0:00:40]} 6. Nf3 {[%emt 0:00:06]} Nc6 {[%emt 0:00:11]} 7. Be3 {[%emt 0:00:06]} a6 {[%emt 0:00:57]} 8. Qd2 {[%emt 0:01:36]} b5 {[%emt 0:01:09]} 9. dxc5 {[%emt 0:02:23]} Bxc5 {[%emt 0:00:58]} 10. Nd4 {[%emt 0:00:27]} Qb6 {[%emt 0:04:17][%cal Rc6d4] C11: French: Classical System: 4 e5 and 4 Bg5 dxe4.} 11. Rd1 {[%emt 0:06:19] [#]} Nxd4 $146 {[%emt 0:05:58]} ({Predecessor:} 11... O-O 12. Be2 Bb7 13. a3 Rac8 14. O-O Ndb8 15. Bf3 Nxd4 16. Bxd4 Nc6 17. Bxc5 Qxc5+ 18. Rf2 {½-½ (42) Kienboeck,B (2241)-Ohanyan,E (2395) Mamaia 2022}) 12. Bxd4 {[%emt 0:00:09]} Bb7 {[%emt 0:00:06] The position is equal.} 13. Ne2 {[%emt 0:19:54]} Rc8 {[%emt 0:06:41]} 14. g3 {[%emt 0:08:55]} b4 {[%emt 0:03:04]} 15. Bxc5 {[%emt 0:15:52]} Nxc5 {[%emt 0:00:22]} 16. Bg2 {[%emt 0:00:30]} a5 {[%emt 0:00:22][%cal Ba6a5,Ba5a4][%mdl 32]} 17. Nd4 {[%emt 0:00:45] [#]} (17. Qd4 $142) 17... Ba6 {[%emt 0:03:51]} (17... Na4 $1 $17 {[%cal Ra4b2]} 18. Qc1 Ba6) 18. Kf2 {[%emt 0:02:49] [#]} Nd3+ $1 {[%emt 0:04:54]} 19. cxd3 {[%emt 0:03:11] Black must now prevent Qe3.} Qxd4+ {[%emt 0:00:08]} 20. Ke2 {[%emt 0:01:31]} (20. Kf3 $142) 20... O-O $17 {[%emt 0:01:08] Black has more active pieces.} 21. Rc1 {[%emt 0:02:36] Prevents Rc6.} a4 {[%emt 0:00:36] ...a3 is the strong threat.} 22. a3 $2 {[%emt 0:07:11][%mdl 8192] This costs White the game.} (22. Rhd1 $17) 22... Rb8 $19 {[%emt 0:03:52][%cal Bc8b8,Bb8b3,Bb3b2][%mdl 32] And now ...bxa3 would win. Black is clearly winning.} 23. Rb1 {[%emt 0:07:29]} Rfc8 {[%emt 0:00:13] Strongly threatening ...bxa3.} 24. Rhd1 {[%emt 0:06:38]} bxa3 {[%emt 0:00:46]} 25. bxa3 {[%emt 0:00:17]} Rb3 {[%emt 0:00:09]} 26. Rbc1 {[%emt 0:06:16]} Rb2 {[%emt 0:00:22] Weighted Error Value: White=1.37/Black=0.07 (flawless)} 0-1